{"text_format":"1","workbook":"xlsx","n_sheets":10,"sheets":["Старт","Соответствия","Работы","Справочники","OUT_TEMPLATE","SPECS","ROOMS","REPOBJS","JOBTYPES","JOBS"],"not_rendered":{"charts":0,"images":0,"macros":1,"external_links":0,"defined_names":7,"comments":0,"pivot_tables":0},"unopened":[],"bounds":{"document_bytes":16777216,"sheet_cells":100000,"rows_first":2000,"rows_last":500,"rows_between":2000,"halvings":0,"cell_chars":16384,"cell_head_chars":4096},"cells_cut":0,"cells_raw":0,"read":"whole","date_system":"1900"}

{"sheet":"Старт","index":0,"n_rows":2,"n_cols":3,"rows_kept":2,"cut":false,"hidden":false,"merged":[]}
[]
[null,null,"Версия 0.30 от 28.05.2017"]

{"sheet":"Соответствия","index":1,"n_rows":171,"n_cols":13,"rows_kept":171,"cut":false,"hidden":false,"merged":[[0,1,0,3],[0,5,0,8],[0,10,0,12]]}
[null,"Помещения - объекты",null,null,null,"Вид работ - помещение - объект",null,null,null,null,"Вид работ - работы"]
[null,"KEY","Помещение","Объект",null,"KEY","Виды работ","Помещение","Объект",null,"KEY","Виды работ","Работы"]
[null,1,"Помещение","Пол",null,1,"Ламинат","Помещение","Пол",null,1,"Линолеум","Грунтовка пола бетоноконтактом"]
[null,2,"Помещение","Стены",null,2,"Линолеум","Помещение","Пол",null,2,"Линолеум","Устройство стяжки песчано-цементной смесью слоем менее 5 см"]
[null,3,"Помещение","Потолок",null,3,"Плитка напольная","Помещение","Пол",null,3,"Линолеум","Грунтовка стяжки"]
[null,4,"Ванная","Пол",null,4,"Плитка напольная","Ванная","Пол",null,4,"Линолеум","Укладка линолеума"]
[null,5,"Ванная","Стены",null,5,"Плитка напольная","Туалет","Пол",null,5,"Линолеум","Монтаж плинтуса, м/п"]
[null,6,"Ванная","Потолок",null,6,"Плитка с тёплым полом","Помещение","Пол",null,6,"Ламинат","Грунтовка пола бетоноконтактом"]
[null,7,"Туалет","Пол",null,7,"Плитка с тёплым полом","Ванная","Пол",null,7,"Ламинат","Устройство стяжки песчано-цементной смесью слоем менее 5 см"]
[null,8,"Туалет","Стены",null,8,"Плитка с тёплым полом","Туалет","Пол",null,8,"Ламинат","Грунтовка стяжки"]
[null,9,"Туалет","Потолок",null,9,"Паркетная доска","Помещение","Пол",null,9,"Ламинат","Устройство наливного пола"]
[null,10,"Туалет","Демонтажные работы",null,10,"Инженерная доска замковым методом","Помещение","Пол",null,10,"Ламинат","Устройство подложки"]
[null,11,"Туалет","Электрика",null,11,"Инженерная доска клеевым методом","Помещение","Пол",null,11,"Ламинат","Укладка ламината"]
[null,12,"Туалет","Сантехника",null,12,"Обои","Помещение","Стены",null,12,"Ламинат","Монтаж плинтуса МДФ, м/п"]
[null,13,"Туалет","Дополнительные работы",null,13,"Обои под покраску","Помещение","Стены",null,13,"Плитка напольная","Грунтовка пола бетоноконтактом"]
[null,null,null,null,null,14,"Покраска стен","Помещение","Стены",null,14,"Плитка напольная","Устройство стяжки песчано-цементной смесью слоем менее 5 см"]
[null,null,null,null,null,15,"Покраска стен","Помещение","Стены",null,15,"Плитка напольная","Грунтовка стяжки"]
[null,null,null,null,null,16,"Декоративная штукатурка","Помещение","Стены",null,16,"Плитка напольная","Укладка плитки"]
[null,null,null,null,null,17,"Плитка настенная","Ванная","Стены",null,17,"Плитка напольная","Затирка швов"]
[null,null,null,null,null,18,"Плитка настенная","Туалет","Стены",null,18,"Плитка с тёплым полом","Грунтовка пола бетоноконтактом"]
[null,null,null,null,null,19,"Натяжной","Помещение","Потолок",null,19,"Плитка с тёплым полом","Устройство стяжки песчано-цементной смесью слоем менее 5 см"]
[null,null,null,null,null,20,"Натяжной","Ванная","Потолок",null,20,"Плитка с тёплым полом","Грунтовка стяжки"]
[null,null,null,null,null,21,"Натяжной","Туалет","Потолок",null,21,"Плитка с тёплым полом","Устройство системы \"тёплый пол\""]
[null,null,null,null,null,22,"Покраска потолка","Помещение","Потолок",null,22,"Плитка с тёплым полом","Укладка плитки"]
[null,null,null,null,null,23,"Покраска потолка","Ванная","Потолок",null,23,"Плитка с тёплым полом","Затирка швов"]
[null,null,null,null,null,24,"Покраска потолка","Туалет","Потолок",null,24,"Паркетная доска","Грунтовка пола бетоноконтактом"]
[null,null,null,null,null,25," ГКЛ подвесной потолок","Помещение","Потолок",null,25,"Паркетная доска","Устройство стяжки песчано-цементной смесью слоем менее 5 см"]
[null,null,null,null,null,26," ГКЛ подвесной потолок","Ванная","Потолок",null,26,"Паркетная доска","Грунтовка стяжки"]
[null,null,null,null,null,27," ГКЛ подвесной потолок","Туалет","Потолок",null,27,"Паркетная доска","Устройство наливного пола"]
[null,null,null,null,null,28,"Демонтажные","Туалет","Демонтажные работы",null,28,"Паркетная доска","Устройство подложки"]
[null,null,null,null,null,29,"Сантехнические","Туалет","Сантехника",null,29,"Паркетная доска","Укладка паркетной доски"]
[null,null,null,null,null,30,"Электротехнические","Туалет","Электрика",null,30,"Паркетная доска","Монтаж плинтуса МДФ, м/п"]
[null,null,null,null,null,31,"Дополнительные","Туалет","Дополнительные работы",null,31,"Инженерная доска замковым методом","Грунтовка пола бетоноконтактом"]
[null,null,null,null,null,null,null,null,null,null,32,"Инженерная доска замковым методом","Устройство стяжки песчано-цементной смесью слоем менее 5 см"]
[null,null,null,null,null,null,null,null,null,null,33,"Инженерная доска замковым методом","Грунтовка стяжки"]
[null,null,null,null,null,null,null,null,null,null,34,"Инженерная доска замковым методом","Устройство наливного пола"]
[null,null,null,null,null,null,null,null,null,null,35,"Инженерная доска замковым методом","Устройство подложки"]
[null,null,null,null,null,null,null,null,null,null,36,"Инженерная доска замковым методом","Укладка инженерной доски замковым методом"]
[null,null,null,null,null,null,null,null,null,null,37,"Инженерная доска замковым методом","Монтаж плинтуса МДФ, м/п"]
[null,null,null,null,null,null,null,null,null,null,38,"Инженерная доска клеевым методом","Грунтовка пола бетоноконтактом"]
[null,null,null,null,null,null,null,null,null,null,39,"Инженерная доска клеевым методом","Устройство стяжки песчано-цементной смесью слоем менее 5 см"]
[null,null,null,null,null,null,null,null,null,null,40,"Инженерная доска клеевым методом","Грунтовка стяжки"]
[null,null,null,null,null,null,null,null,null,null,41,"Инженерная доска клеевым методом","Настил фанеры"]
[null,null,null,null,null,null,null,null,null,null,42,"Инженерная доска клеевым методом","Грунтовка фанеры"]
[null,null,null,null,null,null,null,null,null,null,43,"Инженерная доска клеевым методом","Укладка инженерной доски клеевым методом"]
[null,null,null,null,null,null,null,null,null,null,44,"Обои","Грунтовка стен бетоноконтактом"]
[null,null,null,null,null,null,null,null,null,null,45,"Обои","Штукатурка стен слоем до 30 мм"]
[null,null,null,null,null,null,null,null,null,null,46,"Обои","Грунтовка настенной штукатурки"]
[null,null,null,null,null,null,null,null,null,null,47,"Обои","Шпаклёвка стен первый слой"]
[null,null,null,null,null,null,null,null,null,null,48,"Обои","Грунтовка 1-го слоя настенной шпаклёвки"]
[null,null,null,null,null,null,null,null,null,null,49,"Обои","Шпаклёвка стен второй слой"]
[null,null,null,null,null,null,null,null,null,null,50,"Обои","Грунтовка 2-го слоя настенной шпаклёвки"]
[null,null,null,null,null,null,null,null,null,null,51,"Обои","Поклейка обоев"]
[null,null,null,null,null,null,null,null,null,null,52,"Обои под покраску","Грунтовка стен бетоноконтактом"]
[null,null,null,null,null,null,null,null,null,null,53,"Обои под покраску","Штукатурка стен слоем до 30 мм"]
[null,null,null,null,null,null,null,null,null,null,54,"Обои под покраску","Грунтовка настенной штукатурки"]
[null,null,null,null,null,null,null,null,null,null,55,"Обои под покраску","Шпаклёвка стен первый слой"]
[null,null,null,null,null,null,null,null,null,null,56,"Обои под покраску","Грунтовка 1-го слоя настенной шпаклёвки"]
[null,null,null,null,null,null,null,null,null,null,57,"Обои под покраску","Шпаклёвка стен второй слой"]
[null,null,null,null,null,null,null,null,null,null,58,"Обои под покраску","Грунтовка 2-го слоя настенной шпаклёвки"]
[null,null,null,null,null,null,null,null,null,null,59,"Обои под покраску","Поклейка стеклообоев"]
[null,null,null,null,null,null,null,null,null,null,60,"Обои под покраску","Покраска стеклообоев в 2 слоя"]
[null,null,null,null,null,null,null,null,null,null,61,"Покраска стен","Грунтовка стен бетоноконтактом"]
[null,null,null,null,null,null,null,null,null,null,62,"Покраска стен","Штукатурка стен слоем до 30 мм"]
[null,null,null,null,null,null,null,null,null,null,63,"Покраска стен","Грунтовка настенной штукатурки"]
[null,null,null,null,null,null,null,null,null,null,64,"Покраска стен","Шпаклёвка стен первый слой"]
[null,null,null,null,null,null,null,null,null,null,65,"Покраска стен","Грунтовка 1-го слоя настенной шпаклёвки"]
[null,null,null,null,null,null,null,null,null,null,66,"Покраска стен","Шпаклёвка стен второй слой"]
[null,null,null,null,null,null,null,null,null,null,67,"Покраска стен","Грунтовка 2-го слоя настенной шпаклёвки"]
[null,null,null,null,null,null,null,null,null,null,68,"Покраска стен","Поклейка стеклохолста типа \"паутинка\""]
[null,null,null,null,null,null,null,null,null,null,69,"Покраска стен","Финишная шпаклёвка и шлифовка стен под покраску"]
[null,null,null,null,null,null,null,null,null,null,70,"Покраска стен","Грунтовка финишного слоя настенной шпаклёвки"]
[null,null,null,null,null,null,null,null,null,null,71,"Покраска стен","Покраска стен в 2 слоя"]
[null,null,null,null,null,null,null,null,null,null,72,"Декоративная штукатурка","Грунтовка стен бетоноконтактом"]
[null,null,null,null,null,null,null,null,null,null,73,"Декоративная штукатурка","Штукатурка стен слоем до 30 мм"]
[null,null,null,null,null,null,null,null,null,null,74,"Декоративная штукатурка","Грунтовка настенной штукатурки"]
[null,null,null,null,null,null,null,null,null,null,75,"Декоративная штукатурка","Шпаклёвка стен первый слой"]
[null,null,null,null,null,null,null,null,null,null,76,"Декоративная штукатурка","Грунтовка 1-го слоя настенной шпаклёвки"]
[null,null,null,null,null,null,null,null,null,null,77,"Декоративная штукатурка","Шпаклёвка стен второй слой"]
[null,null,null,null,null,null,null,null,null,null,78,"Декоративная штукатурка","Грунтовка 2-го слоя настенной шпаклёвки"]
[null,null,null,null,null,null,null,null,null,null,79,"Декоративная штукатурка","Поклейка стеклохолста типа \"паутинка\""]
[null,null,null,null,null,null,null,null,null,null,80,"Декоративная штукатурка","Финишная шпаклёвка и шлифовка стен под покраску"]
[null,null,null,null,null,null,null,null,null,null,81,"Декоративная штукатурка","Грунтовка финишного слоя настенной шпаклёвки"]
[null,null,null,null,null,null,null,null,null,null,82,"Декоративная штукатурка","Нанесение декоративной штукатурки"]
[null,null,null,null,null,null,null,null,null,null,83,"Плитка настенная","Грунтовка стен бетоноконтактом"]
[null,null,null,null,null,null,null,null,null,null,84,"Плитка настенная","Штукатурка стен слоем до 30 мм"]
[null,null,null,null,null,null,null,null,null,null,85,"Плитка настенная","Грунтовка настенной штукатурки"]
[null,null,null,null,null,null,null,null,null,null,86,"Плитка настенная","Укладка плитки"]
[null,null,null,null,null,null,null,null,null,null,87,"Плитка настенная","Затирка швов"]
[null,null,null,null,null,null,null,null,null,null,88,"Натяжной","Грунтовка потолка бетоноконтактом"]
[null,null,null,null,null,null,null,null,null,null,89,"Натяжной","Устройство натяжного потолка"]
[null,null,null,null,null,null,null,null,null,null,90,"Покраска потолка","Грунтовка потолка бетоноконтактом"]
[null,null,null,null,null,null,null,null,null,null,91,"Покраска потолка","Штукатурка потолка слоем до 30 мм"]
[null,null,null,null,null,null,null,null,null,null,92,"Покраска потолка","Грунтовка потолочной штукатурки"]
[null,null,null,null,null,null,null,null,null,null,93,"Покраска потолка","Шпаклёвка потолка первый слой"]
[null,null,null,null,null,null,null,null,null,null,94,"Покраска потолка","Грунтовка 1-го слоя потолочной шпаклёвки"]
[null,null,null,null,null,null,null,null,null,null,95,"Покраска потолка","Шпаклёвка потолка второй слой"]
[null,null,null,null,null,null,null,null,null,null,96,"Покраска потолка","Грунтовка 2-го слоя потолочной шпаклёвки"]
[null,null,null,null,null,null,null,null,null,null,97,"Покраска потолка","Поклейка стеклохолста типа \"паутинка\""]
[null,null,null,null,null,null,null,null,null,null,98,"Покраска потолка","Финишная шпаклёвка и шлифовка потолка под покраску"]
[null,null,null,null,null,null,null,null,null,null,99,"Покраска потолка","Грунтовка финишного слоя потолочной шпаклёвки"]
[null,null,null,null,null,null,null,null,null,null,100,"Покраска потолка","Покраска потолка в 2 слоя"]
[null,null,null,null,null,null,null,null,null,null,101,"Покраска потолка","Монтаж потолочного карниза, м/п"]
[null,null,null,null,null,null,null,null,null,null,102,"Покраска потолка","Покраска потолочного карниза, м/п"]
[null,null,null,null,null,null,null,null,null,null,103," ГКЛ подвесной потолок","Грунтовка потолка бетоноконтактом"]
[null,null,null,null,null,null,null,null,null,null,104," ГКЛ подвесной потолок","Устройство подвесного потолка из ГКЛ"]
[null,null,null,null,null,null,null,null,null,null,105," ГКЛ подвесной потолок","Расшивка швов, армирование стыков"]
[null,null,null,null,null,null,null,null,null,null,106," ГКЛ подвесной потолок","Грунтовка ГКЛ потолка"]
[null,null,null,null,null,null,null,null,null,null,107," ГКЛ подвесной потолок","Шпаклёвка потолка первый слой"]
[null,null,null,null,null,null,null,null,null,null,108," ГКЛ подвесной потолок","Грунтовка 1-го слоя потолочной шпаклёвки"]
[null,null,null,null,null,null,null,null,null,null,109," ГКЛ подвесной потолок","Шпаклёвка потолка второй слой"]
[null,null,null,null,null,null,null,null,null,null,110," ГКЛ подвесной потолок","Грунтовка 2-го слоя потолочной шпаклёвки"]
[null,null,null,null,null,null,null,null,null,null,111," ГКЛ подвесной потолок","Поклейка стеклохолста типа \"паутинка\""]
[null,null,null,null,null,null,null,null,null,null,112," ГКЛ подвесной потолок","Финишная шпаклёвка и шлифовка потолка под покраску"]
[null,null,null,null,null,null,null,null,null,null,113," ГКЛ подвесной потолок","Грунтовка финишного слоя потолочной шпаклёвки"]
[null,null,null,null,null,null,null,null,null,null,114," ГКЛ подвесной потолок","Покраска потолка в 2 слоя"]
[null,null,null,null,null,null,null,null,null,null,115," ГКЛ подвесной потолок","Монтаж потолочного карниза, м/п"]
[null,null,null,null,null,null,null,null,null,null,116," ГКЛ подвесной потолок","Покраска потолочного карниза, м/п"]
[null,null,null,null,null,null,null,null,null,null,117,"Демонтажные","Демонтаж линолеума"]
[null,null,null,null,null,null,null,null,null,null,118,"Демонтажные","Демонтаж ламината"]
[null,null,null,null,null,null,null,null,null,null,119,"Демонтажные","Демонтаж плитки"]
[null,null,null,null,null,null,null,null,null,null,120,"Демонтажные","Демонтаж стяжки"]
[null,null,null,null,null,null,null,null,null,null,121,"Демонтажные","Демонтаж лаг"]
[null,null,null,null,null,null,null,null,null,null,122,"Демонтажные","Очистка стен от старых обоев (1 слой)"]
[null,null,null,null,null,null,null,null,null,null,123,"Демонтажные","Демонтаж настенной плитки"]
[null,null,null,null,null,null,null,null,null,null,124,"Демонтажные","Размывка стен"]
[null,null,null,null,null,null,null,null,null,null,125,"Демонтажные","Снос м/к перегородок"]
[null,null,null,null,null,null,null,null,null,null,126,"Демонтажные","Демонтаж реечного подвесного потолка"]
[null,null,null,null,null,null,null,null,null,null,127,"Демонтажные","Демонтаж натяжного потолка"]
[null,null,null,null,null,null,null,null,null,null,128,"Демонтажные","Демонтаж подвесного потолка из ГКЛ"]
[null,null,null,null,null,null,null,null,null,null,129,"Демонтажные","Размывка потолка"]
[null,null,null,null,null,null,null,null,null,null,130,"Демонтажные","Демонтаж потолочного карниза, м/п"]
[null,null,null,null,null,null,null,null,null,null,131,"Демонтажные","Демонтаж радиатора отопления"]
[null,null,null,null,null,null,null,null,null,null,132,"Демонтажные","Демонтаж смесителя"]
[null,null,null,null,null,null,null,null,null,null,133,"Демонтажные","Демонтаж ванны"]
[null,null,null,null,null,null,null,null,null,null,134,"Демонтажные","Демонтаж полотенцесушителя"]
[null,null,null,null,null,null,null,null,null,null,135,"Демонтажные","Демонтаж раковины"]
[null,null,null,null,null,null,null,null,null,null,136,"Демонтажные","Демонтаж унитаза"]
[null,null,null,null,null,null,null,null,null,null,137,"Демонтажные","Демонтаж м/к дверей"]
[null,null,null,null,null,null,null,null,null,null,138,"Сантехнические","Монтаж и распайка труб (Точка)"]
[null,null,null,null,null,null,null,null,null,null,139,"Сантехнические","Вывод канализации"]
[null,null,null,null,null,null,null,null,null,null,140,"Сантехнические","Установка ревизионного люка"]
[null,null,null,null,null,null,null,null,null,null,141,"Сантехнические","Установка фильтра грубой очистки"]
[null,null,null,null,null,null,null,null,null,null,142,"Сантехнические","Устройство гребенки"]
[null,null,null,null,null,null,null,null,null,null,143,"Сантехнические","Установка и подключение стиральной машины"]
[null,null,null,null,null,null,null,null,null,null,144,"Сантехнические","Устройство тропического душа"]
[null,null,null,null,null,null,null,null,null,null,145,"Сантехнические","Установка ванны"]
[null,null,null,null,null,null,null,null,null,null,146,"Сантехнические","Установка душевой кабины"]
[null,null,null,null,null,null,null,null,null,null,147,"Сантехнические","Монтаж унитаза напольного"]
[null,null,null,null,null,null,null,null,null,null,148,"Сантехнические","Монтаж унитаза навесного"]
[null,null,null,null,null,null,null,null,null,null,149,"Сантехнические","Установка раковины"]
[null,null,null,null,null,null,null,null,null,null,150,"Сантехнические","Установка смесителя"]
[null,null,null,null,null,null,null,null,null,null,151,"Сантехнические","Установка водного полотенцесушителя"]
[null,null,null,null,null,null,null,null,null,null,152,"Сантехнические","Установка вентилятора"]
[null,null,null,null,null,null,null,null,null,null,153,"Сантехнические","Монтаж радиатора"]
[null,null,null,null,null,null,null,null,null,null,154,"Электротехнические","Монтаж электрического бокса под автоматы (внутренний монтаж) в стену"]
[null,null,null,null,null,null,null,null,null,null,155,"Электротехнические","Установка УЗО"]
[null,null,null,null,null,null,null,null,null,null,156,"Электротехнические","Установка автомата"]
[null,null,null,null,null,null,null,null,null,null,157,"Электротехнические","Установка механизма (розетка, выключатель)"]
[null,null,null,null,null,null,null,null,null,null,158,"Электротехнические","Прокладка проводов в гофре 3*2.5, 3*1.5, ТВ, интернет"]
[null,null,null,null,null,null,null,null,null,null,159,"Электротехнические","Высверливание углубления и  монтаж в  стене под установочную коробку (подрозетник)"]
[null,null,null,null,null,null,null,null,null,null,160,"Электротехнические","Штробление стен в бетоне до 40 мм. м/п"]
[null,null,null,null,null,null,null,null,null,null,161,"Электротехнические","Заделывание штроб стен м/п"]
[null,null,null,null,null,null,null,null,null,null,162,"Электротехнические","Установка и подключение точечного светильника"]
[null,null,null,null,null,null,null,null,null,null,163,"Электротехнические","Установка люстры"]
[null,null,null,null,null,null,null,null,null,null,164,"Электротехнические","Установка настенного светильника, бра"]
[null,null,null,null,null,null,null,null,null,null,165,"Электротехнические","Установка потолочного светильника"]
[null,null,null,null,null,null,null,null,null,null,166,"Электротехнические","Прокладка светодиодной ленты, м/п"]
[null,null,null,null,null,null,null,null,null,null,167,"Дополнительные","Штукатурка, шлифовка, шпаклёвка дверного и оконных откосов, м/п"]
[null,null,null,null,null,null,null,null,null,null,168,"Дополнительные","Покраска дверного и оконных откосов, м/п"]
[null,null,null,null,null,null,null,null,null,null,169,"Дополнительные","Установка распашных м/к дверей"]

{"sheet":"Работы","index":2,"n_rows":103,"n_cols":6,"rows_kept":103,"cut":false,"hidden":false,"merged":[[0,1,0,5]]}
[null,"Работы"]
[null,"KEY","Работы","Цена","Порядок","Количество из"]
[null,1,"Грунтовка пола бетоноконтактом",60,0,"Площадь пола"]
[null,2,"Устройство стяжки песчано-цементной смесью слоем менее 5 см",430,10,"Площадь пола"]
[null,3,"Грунтовка стяжки",50,20,"Площадь пола"]
[null,4,"Укладка линолеума",280,30,"Площадь пола"]
[null,5,"Монтаж плинтуса, м/п",160,40,"Площадь пола"]
[null,6,"Устройство наливного пола",345,50,"Площадь пола"]
[null,7,"Устройство подложки",120,60,"Площадь пола"]
[null,8,"Укладка ламината",350,70,"Площадь пола"]
[null,9,"Монтаж плинтуса МДФ, м/п",160,80,"Ручной ввод (0)"]
[null,10,"Укладка плитки",950,90,"Площадь пола"]
[null,11,"Затирка швов",200,100,"Площадь пола"]
[null,12,"Устройство системы \"тёплый пол\"",470,110,"Ручной ввод (0)"]
[null,13,"Укладка паркетной доски",420,120,"Площадь пола"]
[null,14,"Укладка инженерной доски замковым методом",420,130,"Площадь пола"]
[null,15,"Настил фанеры",165,140,"Площадь пола"]
[null,16,"Грунтовка фанеры",50,150,"Площадь пола"]
[null,17,"Укладка инженерной доски клеевым методом",1800,160,"Площадь пола"]
[null,18,"Грунтовка стен бетоноконтактом",80,170,"Площадь стен"]
[null,19,"Штукатурка стен слоем до 30 мм",380,180,"Площадь стен"]
[null,20,"Грунтовка настенной штукатурки",60,190,"Площадь стен"]
[null,21,"Шпаклёвка стен первый слой",200,200,"Площадь стен"]
[null,22,"Грунтовка 1-го слоя настенной шпаклёвки",60,210,"Площадь стен"]
[null,23,"Шпаклёвка стен второй слой",140,220,"Площадь стен"]
[null,24,"Грунтовка 2-го слоя настенной шпаклёвки",60,230,"Площадь стен"]
[null,25,"Поклейка обоев",160,240,"Площадь стен"]
[null,26,"Поклейка стеклообоев",180,250,"Площадь стен"]
[null,27,"Покраска стеклообоев в 2 слоя",250,260,"Площадь стен"]
[null,28,"Поклейка стеклохолста типа \"паутинка\"",130,270,"Площадь стен"]
[null,29,"Финишная шпаклёвка и шлифовка стен под покраску",200,280,"Площадь стен"]
[null,30,"Грунтовка финишного слоя настенной шпаклёвки",60,290,"Площадь стен"]
[null,31,"Покраска стен в 2 слоя",250,300,"Площадь стен"]
[null,32,"Нанесение декоративной штукатурки",620,310,"Площадь стен"]
[null,33,"Грунтовка потолка бетоноконтактом",90,320,"Площадь потолка"]
[null,34,"Устройство натяжного потолка",350,330,"Площадь потолка"]
[null,35,"Штукатурка потолка слоем до 30 мм",420,340,"Площадь потолка"]
[null,36,"Грунтовка потолочной штукатурки",80,350,"Площадь потолка"]
[null,37,"Шпаклёвка потолка первый слой",220,360,"Площадь потолка"]
[null,38,"Грунтовка 1-го слоя потолочной шпаклёвки",80,370,"Площадь потолка"]
[null,39,"Шпаклёвка потолка второй слой",160,380,"Площадь потолка"]
[null,40,"Грунтовка 2-го слоя потолочной шпаклёвки",80,390,"Площадь потолка"]
[null,41,"Финишная шпаклёвка и шлифовка потолка под покраску",220,400,"Площадь потолка"]
[null,42,"Грунтовка финишного слоя потолочной шпаклёвки",80,410,"Площадь потолка"]
[null,43,"Покраска потолка в 2 слоя",250,420,"Площадь потолка"]
[null,44,"Монтаж потолочного карниза, м/п",120,430,"Ручной ввод (1)"]
[null,45,"Покраска потолочного карниза, м/п",100,440,"Ручной ввод (1)"]
[null,46,"Устройство подвесного потолка из ГКЛ",690,450,"Площадь потолка"]
[null,47,"Расшивка швов, армирование стыков",120,460,"Площадь потолка"]
[null,48,"Грунтовка ГКЛ потолка",80,470,"Площадь потолка"]
[null,49,"Демонтаж линолеума",30,480,"Ручной ввод (1)"]
[null,50,"Демонтаж ламината",90,490,"Ручной ввод (1)"]
[null,51,"Демонтаж плитки",210,500,"Ручной ввод (1)"]
[null,52,"Демонтаж стяжки",400,510,"Ручной ввод (1)"]
[null,53,"Демонтаж лаг",120,520,"Ручной ввод (1)"]
[null,54,"Очистка стен от старых обоев (1 слой)",85,530,"Ручной ввод (1)"]
[null,55,"Демонтаж настенной плитки",210,540,"Ручной ввод (1)"]
[null,56,"Размывка стен",150,550,"Ручной ввод (1)"]
[null,57,"Снос м/к перегородок",380,560,"Ручной ввод (1)"]
[null,58,"Демонтаж реечного подвесного потолка",120,570,"Ручной ввод (1)"]
[null,59,"Демонтаж натяжного потолка",120,580,"Ручной ввод (1)"]
[null,60,"Демонтаж подвесного потолка из ГКЛ",120,590,"Ручной ввод (1)"]
[null,61,"Размывка потолка",150,600,"Ручной ввод (1)"]
[null,62,"Демонтаж потолочного карниза, м/п",30,610,"Ручной ввод (1)"]
[null,63,"Демонтаж радиатора отопления",420,620,"Ручной ввод (1)"]
[null,64,"Демонтаж смесителя",250,630,"Ручной ввод (1)"]
[null,65,"Демонтаж ванны",600,640,"Ручной ввод (1)"]
[null,66,"Демонтаж полотенцесушителя",440,650,"Ручной ввод (1)"]
[null,67,"Демонтаж раковины",440,660,"Ручной ввод (1)"]
[null,68,"Демонтаж унитаза",360,670,"Ручной ввод (1)"]
[null,69,"Демонтаж м/к дверей",240,680,"Ручной ввод (1)"]
[null,70,"Монтаж и распайка труб (Точка)",4100,690,"Ручной ввод (1)"]
[null,71,"Вывод канализации",2050,700,"Ручной ввод (1)"]
[null,72,"Установка ревизионного люка",3650,710,"Ручной ввод (1)"]
[null,73,"Установка фильтра грубой очистки",1380,720,"Ручной ввод (1)"]
[null,74,"Устройство гребенки",1890,730,"Ручной ввод (1)"]
[null,75,"Установка и подключение стиральной машины",1530,740,"Ручной ввод (1)"]
[null,76,"Устройство тропического душа",3870,750,"Ручной ввод (1)"]
[null,77,"Установка ванны",2430,760,"Ручной ввод (1)"]
[null,78,"Установка душевой кабины",1530,770,"Ручной ввод (1)"]
[null,79,"Монтаж унитаза напольного",1530,780,"Ручной ввод (1)"]
[null,80,"Монтаж унитаза навесного",3180,790,"Ручной ввод (1)"]
[null,81,"Установка раковины",1180,800,"Ручной ввод (1)"]
[null,82,"Установка смесителя",1180,810,"Ручной ввод (1)"]
[null,83,"Установка водного полотенцесушителя",4200,820,"Ручной ввод (1)"]
[null,84,"Установка вентилятора",1420,830,"Ручной ввод (1)"]
[null,85,"Монтаж радиатора",1200,840,"Ручной ввод (1)"]
[null,86,"Монтаж электрического бокса под автоматы (внутренний монтаж) в стену",3760,850,"Ручной ввод (1)"]
[null,87,"Установка УЗО",350,860,"Ручной ввод (1)"]
[null,88,"Установка автомата",290,870,"Ручной ввод (1)"]
[null,89,"Установка механизма (розетка, выключатель)",250,880,"Ручной ввод (1)"]
[null,90,"Прокладка проводов в гофре 3*2.5, 3*1.5, ТВ, интернет",70,890,"Ручной ввод (1)"]
[null,91,"Высверливание углубления и  монтаж в  стене под установочную коробку (подрозетник)",255,900,"Ручной ввод (1)"]
[null,92,"Штробление стен в бетоне до 40 мм. м/п",475,910,"Ручной ввод (1)"]
[null,93,"Заделывание штроб стен м/п",60,920,"Ручной ввод (1)"]
[null,94,"Установка и подключение точечного светильника",250,930,"Ручной ввод (1)"]
[null,95,"Установка люстры",360,940,"Ручной ввод (1)"]
[null,96,"Установка настенного светильника, бра",360,950,"Ручной ввод (1)"]
[null,97,"Установка потолочного светильника",350,960,"Ручной ввод (1)"]
[null,98,"Прокладка светодиодной ленты, м/п",350,970,"Ручной ввод (1)"]
[null,99,"Штукатурка, шлифовка, шпаклёвка дверного и оконных откосов, м/п",830,980,"Ручной ввод (1)"]
[null,100,"Покраска дверного и оконных откосов, м/п",220,990,"Ручной ввод (1)"]
[null,101,"Установка распашных м/к дверей",4500,1000,"Ручной ввод (1)"]

{"sheet":"Справочники","index":3,"n_rows":21,"n_cols":14,"rows_kept":21,"cut":false,"hidden":false,"merged":[[0,1,0,3],[0,5,0,7],[0,9,0,11]]}
[null,"Помещения",null,null,null,"Объекты",null,null,null,"Виды работ"]
[null,"KEY","Помещения","Порядок",null,"KEY","Объекты","Порядок",null,"KEY","Виды работ","Порядок",null,"Количество из"]
[null,1,"_ВСЕ_",0,null,1,"_ВСЕ_",0,null,1,"Линолеум",0,null,"Площадь потолка"]
[null,2,"Помещение",10,null,2,"Пол",10,null,2,"Ламинат",10,null,"Площадь пола"]
[null,3,"Ванная",20,null,3,"Стены",20,null,3,"Плитка напольная",20,null,"Площадь стен"]
[null,4,"Туалет",30,null,4,"Потолок",30,null,4,"Плитка с тёплым полом",30,null,"Ручной ввод (0)"]
[null,null,null,null,null,5,"Демонтажные работы",40,null,5,"Паркетная доска",40,null,"Ручной ввод (1)"]
[null,null,null,null,null,6,"Электрика",50,null,6,"Инженерная доска замковым методом",50]
[null,null,null,null,null,7,"Сантехника",60,null,7,"Инженерная доска клеевым методом",60]
[null,null,null,null,null,8,"Дополнительные работы",70,null,8,"Обои",70]
[null,null,null,null,null,null,null,null,null,9,"Обои под покраску",80]
[null,null,null,null,null,null,null,null,null,10,"Покраска стен",90]
[null,null,null,null,null,null,null,null,null,11,"Декоративная штукатурка",100]
[null,null,null,null,null,null,null,null,null,12,"Плитка настенная",110]
[null,null,null,null,null,null,null,null,null,13,"Натяжной",120]
[null,null,null,null,null,null,null,null,null,14,"Покраска потолка",130]
[null,null,null,null,null,null,null,null,null,15," ГКЛ подвесной потолок",140]
[null,null,null,null,null,null,null,null,null,16,"Демонтажные",150]
[null,null,null,null,null,null,null,null,null,17,"Сантехнические",160]
[null,null,null,null,null,null,null,null,null,18,"Электротехнические",170]
[null,null,null,null,null,null,null,null,null,19,"Дополнительные",180]

{"sheet":"OUT_TEMPLATE","index":4,"n_rows":1000,"n_cols":4,"rows_kept":1000,"cut":false,"hidden":true,"merged":[[0,0,0,3]]}
["Сметный расчет на ремонт квартиры "]
["Наименование","м2 ","Цена за м2","Итого:"]
["Комната",null,null,{"$f":"IF($C3>0,C3*B3,\"\")","v":""}]
["Объект",null,null,{"$f":"IF($C4>0,C4*B4,\"\")","v":""}]
["Работа",3.5,123.4,431.90000000000003]
[null,null,null,""]
[null,null,null,""]
[null,null,null,""]
[null,null,null,""]
[null,null,null,""]
[null,null,null,""]
[null,null,null,""]
[null,null,null,""]
[null,null,null,""]
[null,null,null,""]
[null,null,null,""]
[null,null,null,""]
[null,null,null,""]
[null,null,null,""]
[null,null,null,""]
[null,null,null,""]
[null,null,null,""]
[null,null,null,""]
[null,null,null,""]
[null,null,null,""]
[null,null,null,""]
[null,null,null,""]
[null,null,null,""]
[null,null,null,""]
[null,null,null,""]
[null,null,null,""]
[null,null,null,""]
[null,null,null,""]
[null,null,null,""]
[null,null,null,""]
[null,null,null,""]
[null,null,null,""]
[null,null,null,""]
[null,null,null,""]
[null,null,null,""]
[null,null,null,""]
[null,null,null,""]
[null,null,null,""]
[null,null,null,""]
[null,null,null,""]
[null,null,null,""]
[null,null,null,""]
[null,null,null,""]
[null,null,null,""]
[null,null,null,""]
[null,null,null,""]
[null,null,null,""]
[null,null,null,""]
[null,null,null,""]
[null,null,null,""]
[null,null,null,""]
[null,null,null,""]
[null,null,null,""]
[null,null,null,""]
[null,null,null,""]
[null,null,null,""]
[null,null,null,""]
[null,null,null,""]
[null,null,null,""]
[null,null,null,""]
[null,null,null,""]
[null,null,null,""]
[null,null,null,{"$f":"IF($C68>0,C68*B68,\"\")","v":""}]
[null,null,null,""]
[null,null,null,""]
[null,null,null,""]
[null,null,null,""]
[null,null,null,""]
[null,null,null,""]
[null,null,null,""]
[null,null,null,""]
[null,null,null,""]
[null,null,null,""]
[null,null,null,""]
[null,null,null,""]
[null,null,null,""]
[null,null,null,""]
[null,null,null,""]
[null,null,null,""]
[null,null,null,""]
[null,null,null,""]
[null,null,null,""]
[null,null,null,""]
[null,null,null,""]
[null,null,null,""]
[null,null,null,""]
[null,null,null,""]
[null,null,null,""]
[null,null,null,""]
[null,null,null,""]
[null,null,null,""]
[null,null,null,""]
[null,null,null,""]
[null,null,null,""]
[null,null,null,""]
[null,null,null,""]
[null,null,null,""]
[null,null,null,""]
[null,null,null,""]
[null,null,null,""]
[null,null,null,""]
[null,null,null,""]
[null,null,null,""]
[null,null,null,""]
[null,null,null,""]
[null,null,null,""]
[null,null,null,""]
[null,null,null,""]
[null,null,null,""]
[null,null,null,""]
[null,null,null,""]
[null,null,null,""]
[null,null,null,""]
[null,null,null,""]
[null,null,null,""]
[null,null,null,""]
[null,null,null,""]
[null,null,null,""]
[null,null,null,""]
[null,null,null,""]
[null,null,null,""]
[null,null,null,""]
[null,null,null,""]
[null,null,null,""]
[null,null,null,""]
[null,null,null,""]
[null,null,null,{"$f":"IF($C132>0,C132*B132,\"\")","v":""}]
[null,null,null,""]
[null,null,null,""]
[null,null,null,""]
[null,null,null,""]
[null,null,null,""]
[null,null,null,""]
[null,null,null,""]
[null,null,null,""]
[null,null,null,""]
[null,null,null,""]
[null,null,null,""]
[null,null,null,""]
[null,null,null,""]
[null,null,null,""]
[null,null,null,""]
[null,null,null,""]
[null,null,null,""]
[null,null,null,""]
[null,null,null,""]
[null,null,null,""]
[null,null,null,""]
[null,null,null,""]
[null,null,null,""]
[null,null,null,""]
[null,null,null,""]
[null,null,null,""]
[null,null,null,""]
[null,null,null,""]
[null,null,null,""]
[null,null,null,""]
[null,null,null,""]
[null,null,null,""]
[null,null,null,""]
[null,null,null,""]
[null,null,null,""]
[null,null,null,""]
[null,null,null,""]
[null,null,null,""]
[null,null,null,""]
[null,null,null,""]
[null,null,null,""]
[null,null,null,""]
[null,null,null,""]
[null,null,null,""]
[null,null,null,""]
[null,null,null,""]
[null,null,null,""]
[null,null,null,""]
[null,null,null,""]
[null,null,null,""]
[null,null,null,""]
[null,null,null,""]
[null,null,null,""]
[null,null,null,""]
[null,null,null,""]
[null,null,null,""]
[null,null,null,""]
[null,null,null,""]
[null,null,null,""]
[null,null,null,""]
[null,null,null,""]
[null,null,null,""]
[null,null,null,""]
[null,null,null,{"$f":"IF($C196>0,C196*B196,\"\")","v":""}]
[null,null,null,""]
[null,null,null,""]
[null,null,null,""]
[null,null,null,""]
[null,null,null,""]
[null,null,null,""]
[null,null,null,""]
[null,null,null,""]
[null,null,null,""]
[null,null,null,""]
[null,null,null,""]
[null,null,null,""]
[null,null,null,""]
[null,null,null,""]
[null,null,null,""]
[null,null,null,""]
[null,null,null,""]
[null,null,null,""]
[null,null,null,""]
[null,null,null,""]
[null,null,null,""]
[null,null,null,""]
[null,null,null,""]
[null,null,null,""]
[null,null,null,""]
[null,null,null,""]
[null,null,null,""]
[null,null,null,""]
[null,null,null,""]
[null,null,null,""]
[null,null,null,""]
[null,null,null,""]
[null,null,null,""]
[null,null,null,""]
[null,null,null,""]
[null,null,null,""]
[null,null,null,""]
[null,null,null,""]
[null,null,null,""]
[null,null,null,""]
[null,null,null,""]
[null,null,null,""]
[null,null,null,""]
[null,null,null,""]
[null,null,null,""]
[null,null,null,""]
[null,null,null,""]
[null,null,null,""]
[null,null,null,""]
[null,null,null,""]
[null,null,null,""]
[null,null,null,""]
[null,null,null,""]
[null,null,null,""]
[null,null,null,""]
[null,null,null,""]
[null,null,null,""]
[null,null,null,""]
[null,null,null,""]
[null,null,null,""]
[null,null,null,""]
[null,null,null,""]
[null,null,null,""]
[null,null,null,{"$f":"IF($C260>0,C260*B260,\"\")","v":""}]
[null,null,null,""]
[null,null,null,""]
[null,null,null,""]
[null,null,null,""]
[null,null,null,""]
[null,null,null,""]
[null,null,null,""]
[null,null,null,""]
[null,null,null,""]
[null,null,null,""]
[null,null,null,""]
[null,null,null,""]
[null,null,null,""]
[null,null,null,""]
[null,null,null,""]
[null,null,null,""]
[null,null,null,""]
[null,null,null,""]
[null,null,null,""]
[null,null,null,""]
[null,null,null,""]
[null,null,null,""]
[null,null,null,""]
[null,null,null,""]
[null,null,null,""]
[null,null,null,""]
[null,null,null,""]
[null,null,null,""]
[null,null,null,""]
[null,null,null,""]
[null,null,null,""]
[null,null,null,""]
[null,null,null,""]
[null,null,null,""]
[null,null,null,""]
[null,null,null,""]
[null,null,null,""]
[null,null,null,""]
[null,null,null,""]
[null,null,null,""]
[null,null,null,""]
[null,null,null,""]
[null,null,null,""]
[null,null,null,""]
[null,null,null,""]
[null,null,null,""]
[null,null,null,""]
[null,null,null,""]
[null,null,null,""]
[null,null,null,""]
[null,null,null,""]
[null,null,null,""]
[null,null,null,""]
[null,null,null,""]
[null,null,null,""]
[null,null,null,""]
[null,null,null,""]
[null,null,null,""]
[null,null,null,""]
[null,null,null,""]
[null,null,null,""]
[null,null,null,""]
[null,null,null,""]
[null,null,null,{"$f":"IF($C324>0,C324*B324,\"\")","v":""}]
[null,null,null,""]
[null,null,null,""]
[null,null,null,""]
[null,null,null,""]
[null,null,null,""]
[null,null,null,""]
[null,null,null,""]
[null,null,null,""]
[null,null,null,""]
[null,null,null,""]
[null,null,null,""]
[null,null,null,""]
[null,null,null,""]
[null,null,null,""]
[null,null,null,""]
[null,null,null,""]
[null,null,null,""]
[null,null,null,""]
[null,null,null,""]
[null,null,null,""]
[null,null,null,""]
[null,null,null,""]
[null,null,null,""]
[null,null,null,""]
[null,null,null,""]
[null,null,null,""]
[null,null,null,""]
[null,null,null,""]
[null,null,null,""]
[null,null,null,""]
[null,null,null,""]
[null,null,null,""]
[null,null,null,""]
[null,null,null,""]
[null,null,null,""]
[null,null,null,""]
[null,null,null,""]
[null,null,null,""]
[null,null,null,""]
[null,null,null,""]
[null,null,null,""]
[null,null,null,""]
[null,null,null,""]
[null,null,null,""]
[null,null,null,""]
[null,null,null,""]
[null,null,null,""]
[null,null,null,""]
[null,null,null,""]
[null,null,null,""]
[null,null,null,""]
[null,null,null,""]
[null,null,null,""]
[null,null,null,""]
[null,null,null,""]
[null,null,null,""]
[null,null,null,""]
[null,null,null,""]
[null,null,null,""]
[null,null,null,""]
[null,null,null,""]
[null,null,null,""]
[null,null,null,""]
[null,null,null,{"$f":"IF($C388>0,C388*B388,\"\")","v":""}]
[null,null,null,""]
[null,null,null,""]
[null,null,null,""]
[null,null,null,""]
[null,null,null,""]
[null,null,null,""]
[null,null,null,""]
[null,null,null,""]
[null,null,null,""]
[null,null,null,""]
[null,null,null,""]
[null,null,null,""]
[null,null,null,""]
[null,null,null,""]
[null,null,null,""]
[null,null,null,""]
[null,null,null,""]
[null,null,null,""]
[null,null,null,""]
[null,null,null,""]
[null,null,null,""]
[null,null,null,""]
[null,null,null,""]
[null,null,null,""]
[null,null,null,""]
[null,null,null,""]
[null,null,null,""]
[null,null,null,""]
[null,null,null,""]
[null,null,null,""]
[null,null,null,""]
[null,null,null,""]
[null,null,null,""]
[null,null,null,""]
[null,null,null,""]
[null,null,null,""]
[null,null,null,""]
[null,null,null,""]
[null,null,null,""]
[null,null,null,""]
[null,null,null,""]
[null,null,null,""]
[null,null,null,""]
[null,null,null,""]
[null,null,null,""]
[null,null,null,""]
[null,null,null,""]
[null,null,null,""]
[null,null,null,""]
[null,null,null,""]
[null,null,null,""]
[null,null,null,""]
[null,null,null,""]
[null,null,null,""]
[null,null,null,""]
[null,null,null,""]
[null,null,null,""]
[null,null,null,""]
[null,null,null,""]
[null,null,null,""]
[null,null,null,""]
[null,null,null,""]
[null,null,null,""]
[null,null,null,{"$f":"IF($C452>0,C452*B452,\"\")","v":""}]
[null,null,null,""]
[null,null,null,""]
[null,null,null,""]
[null,null,null,""]
[null,null,null,""]
[null,null,null,""]
[null,null,null,""]
[null,null,null,""]
[null,null,null,""]
[null,null,null,""]
[null,null,null,""]
[null,null,null,""]
[null,null,null,""]
[null,null,null,""]
[null,null,null,""]
[null,null,null,""]
[null,null,null,""]
[null,null,null,""]
[null,null,null,""]
[null,null,null,""]
[null,null,null,""]
[null,null,null,""]
[null,null,null,""]
[null,null,null,""]
[null,null,null,""]
[null,null,null,""]
[null,null,null,""]
[null,null,null,""]
[null,null,null,""]
[null,null,null,""]
[null,null,null,""]
[null,null,null,""]
[null,null,null,""]
[null,null,null,""]
[null,null,null,""]
[null,null,null,""]
[null,null,null,""]
[null,null,null,""]
[null,null,null,""]
[null,null,null,""]
[null,null,null,""]
[null,null,null,""]
[null,null,null,""]
[null,null,null,""]
[null,null,null,""]
[null,null,null,""]
[null,null,null,""]
[null,null,null,""]
[null,null,null,""]
[null,null,null,""]
[null,null,null,""]
[null,null,null,""]
[null,null,null,""]
[null,null,null,""]
[null,null,null,""]
[null,null,null,""]
[null,null,null,""]
[null,null,null,""]
[null,null,null,""]
[null,null,null,""]
[null,null,null,""]
[null,null,null,""]
[null,null,null,""]
[null,null,null,{"$f":"IF($C516>0,C516*B516,\"\")","v":""}]
[null,null,null,""]
[null,null,null,""]
[null,null,null,""]
[null,null,null,""]
[null,null,null,""]
[null,null,null,""]
[null,null,null,""]
[null,null,null,""]
[null,null,null,""]
[null,null,null,""]
[null,null,null,""]
[null,null,null,""]
[null,null,null,""]
[null,null,null,""]
[null,null,null,""]
[null,null,null,""]
[null,null,null,""]
[null,null,null,""]
[null,null,null,""]
[null,null,null,""]
[null,null,null,""]
[null,null,null,""]
[null,null,null,""]
[null,null,null,""]
[null,null,null,""]
[null,null,null,""]
[null,null,null,""]
[null,null,null,""]
[null,null,null,""]
[null,null,null,""]
[null,null,null,""]
[null,null,null,""]
[null,null,null,""]
[null,null,null,""]
[null,null,null,""]
[null,null,null,""]
[null,null,null,""]
[null,null,null,""]
[null,null,null,""]
[null,null,null,""]
[null,null,null,""]
[null,null,null,""]
[null,null,null,""]
[null,null,null,""]
[null,null,null,""]
[null,null,null,""]
[null,null,null,""]
[null,null,null,""]
[null,null,null,""]
[null,null,null,""]
[null,null,null,""]
[null,null,null,""]
[null,null,null,""]
[null,null,null,""]
[null,null,null,""]
[null,null,null,""]
[null,null,null,""]
[null,null,null,""]
[null,null,null,""]
[null,null,null,""]
[null,null,null,""]
[null,null,null,""]
[null,null,null,""]
[null,null,null,{"$f":"IF($C580>0,C580*B580,\"\")","v":""}]
[null,null,null,""]
[null,null,null,""]
[null,null,null,""]
[null,null,null,""]
[null,null,null,""]
[null,null,null,""]
[null,null,null,""]
[null,null,null,""]
[null,null,null,""]
[null,null,null,""]
[null,null,null,""]
[null,null,null,""]
[null,null,null,""]
[null,null,null,""]
[null,null,null,""]
[null,null,null,""]
[null,null,null,""]
[null,null,null,""]
[null,null,null,""]
[null,null,null,""]
[null,null,null,""]
[null,null,null,""]
[null,null,null,""]
[null,null,null,""]
[null,null,null,""]
[null,null,null,""]
[null,null,null,""]
[null,null,null,""]
[null,null,null,""]
[null,null,null,""]
[null,null,null,""]
[null,null,null,""]
[null,null,null,""]
[null,null,null,""]
[null,null,null,""]
[null,null,null,""]
[null,null,null,""]
[null,null,null,""]
[null,null,null,""]
[null,null,null,""]
[null,null,null,""]
[null,null,null,""]
[null,null,null,""]
[null,null,null,""]
[null,null,null,""]
[null,null,null,""]
[null,null,null,""]
[null,null,null,""]
[null,null,null,""]
[null,null,null,""]
[null,null,null,""]
[null,null,null,""]
[null,null,null,""]
[null,null,null,""]
[null,null,null,""]
[null,null,null,""]
[null,null,null,""]
[null,null,null,""]
[null,null,null,""]
[null,null,null,""]
[null,null,null,""]
[null,null,null,""]
[null,null,null,""]
[null,null,null,{"$f":"IF($C644>0,C644*B644,\"\")","v":""}]
[null,null,null,""]
[null,null,null,""]
[null,null,null,""]
[null,null,null,""]
[null,null,null,""]
[null,null,null,""]
[null,null,null,""]
[null,null,null,""]
[null,null,null,""]
[null,null,null,""]
[null,null,null,""]
[null,null,null,""]
[null,null,null,""]
[null,null,null,""]
[null,null,null,""]
[null,null,null,""]
[null,null,null,""]
[null,null,null,""]
[null,null,null,""]
[null,null,null,""]
[null,null,null,""]
[null,null,null,""]
[null,null,null,""]
[null,null,null,""]
[null,null,null,""]
[null,null,null,""]
[null,null,null,""]
[null,null,null,""]
[null,null,null,""]
[null,null,null,""]
[null,null,null,""]
[null,null,null,""]
[null,null,null,""]
[null,null,null,""]
[null,null,null,""]
[null,null,null,""]
[null,null,null,""]
[null,null,null,""]
[null,null,null,""]
[null,null,null,""]
[null,null,null,""]
[null,null,null,""]
[null,null,null,""]
[null,null,null,""]
[null,null,null,""]
[null,null,null,""]
[null,null,null,""]
[null,null,null,""]
[null,null,null,""]
[null,null,null,""]
[null,null,null,""]
[null,null,null,""]
[null,null,null,""]
[null,null,null,""]
[null,null,null,""]
[null,null,null,""]
[null,null,null,""]
[null,null,null,""]
[null,null,null,""]
[null,null,null,""]
[null,null,null,""]
[null,null,null,""]
[null,null,null,""]
[null,null,null,{"$f":"IF($C708>0,C708*B708,\"\")","v":""}]
[null,null,null,""]
[null,null,null,""]
[null,null,null,""]
[null,null,null,""]
[null,null,null,""]
[null,null,null,""]
[null,null,null,""]
[null,null,null,""]
[null,null,null,""]
[null,null,null,""]
[null,null,null,""]
[null,null,null,""]
[null,null,null,""]
[null,null,null,""]
[null,null,null,""]
[null,null,null,""]
[null,null,null,""]
[null,null,null,""]
[null,null,null,""]
[null,null,null,""]
[null,null,null,""]
[null,null,null,""]
[null,null,null,""]
[null,null,null,""]
[null,null,null,""]
[null,null,null,""]
[null,null,null,""]
[null,null,null,""]
[null,null,null,""]
[null,null,null,""]
[null,null,null,""]
[null,null,null,""]
[null,null,null,""]
[null,null,null,""]
[null,null,null,""]
[null,null,null,""]
[null,null,null,""]
[null,null,null,""]
[null,null,null,""]
[null,null,null,""]
[null,null,null,""]
[null,null,null,""]
[null,null,null,""]
[null,null,null,""]
[null,null,null,""]
[null,null,null,""]
[null,null,null,""]
[null,null,null,""]
[null,null,null,""]
[null,null,null,""]
[null,null,null,""]
[null,null,null,""]
[null,null,null,""]
[null,null,null,""]
[null,null,null,""]
[null,null,null,""]
[null,null,null,""]
[null,null,null,""]
[null,null,null,""]
[null,null,null,""]
[null,null,null,""]
[null,null,null,""]
[null,null,null,""]
[null,null,null,{"$f":"IF($C772>0,C772*B772,\"\")","v":""}]
[null,null,null,""]
[null,null,null,""]
[null,null,null,""]
[null,null,null,""]
[null,null,null,""]
[null,null,null,""]
[null,null,null,""]
[null,null,null,""]
[null,null,null,""]
[null,null,null,""]
[null,null,null,""]
[null,null,null,""]
[null,null,null,""]
[null,null,null,""]
[null,null,null,""]
[null,null,null,""]
[null,null,null,""]
[null,null,null,""]
[null,null,null,""]
[null,null,null,""]
[null,null,null,""]
[null,null,null,""]
[null,null,null,""]
[null,null,null,""]
[null,null,null,""]
[null,null,null,""]
[null,null,null,""]
[null,null,null,""]
[null,null,null,""]
[null,null,null,""]
[null,null,null,""]
[null,null,null,""]
[null,null,null,""]
[null,null,null,""]
[null,null,null,""]
[null,null,null,""]
[null,null,null,""]
[null,null,null,""]
[null,null,null,""]
[null,null,null,""]
[null,null,null,""]
[null,null,null,""]
[null,null,null,""]
[null,null,null,""]
[null,null,null,""]
[null,null,null,""]
[null,null,null,""]
[null,null,null,""]
[null,null,null,""]
[null,null,null,""]
[null,null,null,""]
[null,null,null,""]
[null,null,null,""]
[null,null,null,""]
[null,null,null,""]
[null,null,null,""]
[null,null,null,""]
[null,null,null,""]
[null,null,null,""]
[null,null,null,""]
[null,null,null,""]
[null,null,null,""]
[null,null,null,""]
[null,null,null,{"$f":"IF($C836>0,C836*B836,\"\")","v":""}]
[null,null,null,""]
[null,null,null,""]
[null,null,null,""]
[null,null,null,""]
[null,null,null,""]
[null,null,null,""]
[null,null,null,""]
[null,null,null,""]
[null,null,null,""]
[null,null,null,""]
[null,null,null,""]
[null,null,null,""]
[null,null,null,""]
[null,null,null,""]
[null,null,null,""]
[null,null,null,""]
[null,null,null,""]
[null,null,null,""]
[null,null,null,""]
[null,null,null,""]
[null,null,null,""]
[null,null,null,""]
[null,null,null,""]
[null,null,null,""]
[null,null,null,""]
[null,null,null,""]
[null,null,null,""]
[null,null,null,""]
[null,null,null,""]
[null,null,null,""]
[null,null,null,""]
[null,null,null,""]
[null,null,null,""]
[null,null,null,""]
[null,null,null,""]
[null,null,null,""]
[null,null,null,""]
[null,null,null,""]
[null,null,null,""]
[null,null,null,""]
[null,null,null,""]
[null,null,null,""]
[null,null,null,""]
[null,null,null,""]
[null,null,null,""]
[null,null,null,""]
[null,null,null,""]
[null,null,null,""]
[null,null,null,""]
[null,null,null,""]
[null,null,null,""]
[null,null,null,""]
[null,null,null,""]
[null,null,null,""]
[null,null,null,""]
[null,null,null,""]
[null,null,null,""]
[null,null,null,""]
[null,null,null,""]
[null,null,null,""]
[null,null,null,""]
[null,null,null,""]
[null,null,null,""]
[null,null,null,{"$f":"IF($C900>0,C900*B900,\"\")","v":""}]
[null,null,null,""]
[null,null,null,""]
[null,null,null,""]
[null,null,null,""]
[null,null,null,""]
[null,null,null,""]
[null,null,null,""]
[null,null,null,""]
[null,null,null,""]
[null,null,null,""]
[null,null,null,""]
[null,null,null,""]
[null,null,null,""]
[null,null,null,""]
[null,null,null,""]
[null,null,null,""]
[null,null,null,""]
[null,null,null,""]
[null,null,null,""]
[null,null,null,""]
[null,null,null,""]
[null,null,null,""]
[null,null,null,""]
[null,null,null,""]
[null,null,null,""]
[null,null,null,""]
[null,null,null,""]
[null,null,null,""]
[null,null,null,""]
[null,null,null,""]
[null,null,null,""]
[null,null,null,""]
[null,null,null,""]
[null,null,null,""]
[null,null,null,""]
[null,null,null,""]
[null,null,null,""]
[null,null,null,""]
[null,null,null,""]
[null,null,null,""]
[null,null,null,""]
[null,null,null,""]
[null,null,null,""]
[null,null,null,""]
[null,null,null,""]
[null,null,null,""]
[null,null,null,""]
[null,null,null,""]
[null,null,null,""]
[null,null,null,""]
[null,null,null,""]
[null,null,null,""]
[null,null,null,""]
[null,null,null,""]
[null,null,null,""]
[null,null,null,""]
[null,null,null,""]
[null,null,null,""]
[null,null,null,""]
[null,null,null,""]
[null,null,null,""]
[null,null,null,""]
[null,null,null,""]
[null,null,null,{"$f":"IF($C964>0,C964*B964,\"\")","v":""}]
[null,null,null,""]
[null,null,null,""]
[null,null,null,""]
[null,null,null,""]
[null,null,null,""]
[null,null,null,""]
[null,null,null,""]
[null,null,null,""]
[null,null,null,""]
[null,null,null,""]
[null,null,null,""]
[null,null,null,""]
[null,null,null,""]
[null,null,null,""]
[null,null,null,""]
[null,null,null,""]
[null,null,null,""]
[null,null,null,""]
[null,null,null,""]
[null,null,null,""]
[null,null,null,""]
[null,null,null,""]
[null,null,null,""]
[null,null,null,""]
[null,null,null,""]
[null,null,null,""]
[null,null,null,""]
[null,null,null,""]
[null,null,null,""]
[null,null,null,""]
[null,null,null,""]
[null,null,null,""]
[null,null,null,""]
[null,null,null,""]
[null,null,null,""]
["ИТОГО:",null,null,{"$f":"SUM(D6:D999)","v":0}]

{"sheet":"SPECS","index":5,"n_rows":2,"n_cols":7,"rows_kept":2,"cut":false,"hidden":true,"merged":[]}
["KEY","Клиент","Адрес","Создана","Изменена","Сметчик","Комментарий"]
[1,"Пятницкий А.Н.","Рублевское шоссе, 321","2017-05-28T20:48:13","2017-06-03T09:36:19","Капустин П.С."]

{"sheet":"ROOMS","index":6,"n_rows":3,"n_cols":9,"rows_kept":3,"cut":false,"hidden":true,"merged":[]}
["KEY","SPEC_ID","ROOM_ID","Помещение","Пользовательское имя","Площадь пола","Площадь потолка","Площадь стен","SortIdx"]
[0,0,0,null,null,0,0,0,1000000]
[1,1,3,"Ванная","Восточная",12,12,12,20000000]

{"sheet":"REPOBJS","index":7,"n_rows":3,"n_cols":5,"rows_kept":3,"cut":false,"hidden":true,"merged":[]}
["KEY","ROOM_ID","REPOBJ_ID","Объект","SortIdx"]
[0,0,0,"DEFAULT",1000000]
[1,1,0,"Пол",20100000]

{"sheet":"JOBTYPES","index":8,"n_rows":3,"n_cols":5,"rows_kept":3,"cut":false,"hidden":true,"merged":[]}
["KEY","REPOBJ_ID","JT_ID","Вид работ","SortIdx"]
[0,0,0,"DEFAULT",1000000]
[1,1,3,"Плитка напольная",20102000]

{"sheet":"JOBS","index":9,"n_rows":7,"n_cols":7,"rows_kept":7,"cut":false,"hidden":true,"merged":[]}
["KEY","JT_ID","JOB_ID","Работы","Цена","Количество","SortIdx"]
[0,0,0,"DEFAULT",0,0,1000000]
[1,1,1,"Грунтовка пола бетоноконтактом",60,12,20102000]
[2,1,2,"Устройство стяжки песчано-цементной смесью слоем менее 5 см",430,12,20102010]
[3,1,3,"Грунтовка стяжки",50,12,20102020]
[4,1,10,"Укладка плитки",950,12,20102090]
[5,1,11,"Затирка швов",150,12,20102100]